bitfinex-derivatives/quotes_ETHF0:USTF0_20260121
["timestamp","ask_amount","ask_price","bid_price","bid_amount"]
[1769024325284,3.36105943,3035.0,3031.9,1.77406883]
[1769024326079,3.36105943,3035.0,3032.4,0.16502]
[1769024326284,0.00383705,3035.2,3032.4,0.16502]
[1769024326285,3.45502765,3034.8,3032.4,0.16502]
[1769024327191,3.45502765,3034.8,3032.5,0.16501]
[1769024327492,3.45502765,3034.8,3032.6,0.16501]
[1769024327693,0.00383705,3035.2,3033.0,0.16499]
[1769024328281,3.4588647,3035.2,3032.5,1.71564058]
[1769024328490,3.4588647,3035.2,3032.3,0.16502]
[1769024328693,3.4588647,3035.2,3031.8,1.71458512]
[1769024328893,3.45502765,3035.0,3031.8,1.71458512]
[1769024329394,3.45502765,3035.0,3032.6,0.16501]
[1769024330092,2.075,3034.9,3032.6,0.16501]
[1769024330295,3.45502765,3034.8,3032.6,0.16501]
[1769024331489,3.45502765,3034.8,3031.8,1.71458512]
[1769024331685,3.45502765,3034.8,3031.6,1.0663797]
[1769024331686,3.45502765,3034.8,3032.7,0.165]
[1769024331888,5.5328647,3035.2,3032.2,1.71002487]
[1769024332091,3.45502765,3035.1,3032.2,1.71002487]
[1769024332791,3.45502765,3035.1,3031.9,0.16505]
[1769024332995,3.45502765,3035.1,3031.8,1.0663797]
[1769024332996,3.45502765,3033.4,3030.5,1.09266935]
[1769024333197,3.45502765,3033.4,3030.6,0.16512]
[1769024333497,3.61999765,3033.4,3030.7,0.16511]
[1769024334198,3.61999765,3033.4,3030.7,0.16885777]
[1769024334804,2.81393934,3034.9,3030.7,0.16885777]
[1769024334805,3.45502765,3034.7,3031.6,2.74208174]
[1769024334993,3.61992765,3034.7,3031.7,0.16506]
[1769024335189,3.61992765,3034.7,3031.8,0.16505]
[1769024335495,3.61992765,3034.7,3030.7,0.00374777]
[1769024335496,3.45502765,3033.9,3030.7,0.00374777]
[1769024335694,3.45502765,3031.9,3028.3,2.74208174]
[1769024335998,3.45502765,3031.7,3029.5,2.74208174]
[1769024336300,3.45502765,3031.7,3028.9,0.16521]
[1769024336502,3.45502765,3031.7,3028.5,2.78652052]
[1769024336696,3.78593123,3031.7,3029.3,0.16519]
[1769024336896,3.45833595,3031.7,3029.5,0.16518]
[1769024337900,3.45833595,3031.7,3029.7,0.16517]
[1769024338098,0.16499,3033.1,3028.9,2.79005558]
[1769024338099,3.45502765,3033.7,3030.1,2.59235416]
[1769024338298,3.45502765,3033.3,3030.1,2.59235416]
[1769024338487,3.45502765,3033.3,3030.9,0.1651]
[1769024338899,3.45502765,3033.3,3030.2,0.16514]
[1769024339099,3.78387992,3033.3,3030.2,0.00374777]
[1769024339599,3.78387992,3033.3,3030.1,2.59235416]
[1769024340299,3.38705698,3033.1,3029.0,2.61472025]
[1769024340495,3.55204698,3033.1,3029.9,0.16516]
[1769024340693,2.084,3033.2,3029.9,0.16516]
[1769024340694,3.38705698,3032.9,3029.9,0.16516]
[1769024340894,3.38705698,3032.9,3029.9,2.61846802]
[1769024341196,3.38705698,3032.9,3030.8,0.16511]
[1769024341397,3.38705698,3032.9,3031.0,0.1651]
[1769024342088,3.38705698,3032.9,3031.2,0.00374777]
[1769024342291,3.38705698,3032.9,3028.7,2.13275941]
[1769024342292,3.38705698,3032.5,3029.4,2.60218289]
[1769024342489,3.38705698,3032.5,3030.0,0.16515]
[1769024343203,3.38705698,3032.3,3030.0,0.00399956]
[1769024343398,3.38705698,3032.1,3030.0,0.00399956]
[1769024343996,3.38705698,3032.0,3030.0,0.00399956]
[1769024344695,3.38705698,3031.2,3028.0,0.16526]
[1769024344895,3.55214698,3031.2,3027.8,2.52707899]
[1769024345094,3.38705698,3031.2,3028.5,0.16523]
[1769024345694,3.38705698,3031.2,3028.5,0.16939271]
[1769024346497,3.38705698,3029.7,3025.9,2.13275941]
[1769024346696,3.38705698,3029.7,3025.2,2.13275941]
[1769024346893,3.38705698,3029.7,3025.7,2.13275941]
[1769024347096,3.38705698,3029.7,3026.8,0.16533]
[1769024347498,3.38961078,3029.7,3026.8,0.16844799]
[1769024347697,3.38961078,3029.7,3026.9,0.16532]
[1769024347902,3.38961078,3029.7,3026.8,0.00311799]
[1769024348197,0.0025538,3029.7,3026.8,0.00311799]
[1769024348601,0.0025538,3029.7,3027.8,2.58041946]
[1769024348998,0.0025538,3029.7,3028.6,0.16523]
[1769024349198,0.0025538,3029.7,3028.9,0.16521]
[1769024349397,0.0025538,3029.7,3027.8,2.58041946]
[1769024349398,3.38705698,3031.1,3029.1,0.1652]
[1769024349597,3.38705698,3031.7,3028.9,2.58041946]
[1769024350196,3.38705698,3032.4,3030.0,0.16515]
[1769024350396,3.38705698,3032.4,3030.0,0.00400817]
[1769024350397,3.39022923,3032.4,3030.0,0.00400817]
[1769024350601,0.00317225,3032.4,3030.9,0.1651]
[1769024351701,0.00317225,3032.4,3030.9,3.19301567]
[1769024352204,3.38705698,3033.9,3031.3,2.94234035]
[1769024352406,3.38705698,3034.6,3032.2,0.16503]
[1769024353210,3.38957084,3034.6,3032.2,0.16815583]
[1769024353509,3.38957084,3034.6,3032.2,0.00312583]
[1769024354406,0.00251386,3034.6,3032.6,2.91377354]
[1769024354604,0.62008372,3037.1,3033.3,0.16497]
[1769024354605,3.38705698,3036.0,3033.3,0.16497]
[1769024354906,3.38705698,3036.0,3033.8,0.16494]
[1769024355208,2.33824426,3037.1,3033.9,2.91377354]
[1769024355507,3.3946699,3037.1,3034.0,2.90827489]
[1769024355810,3.39861297,3037.1,3034.7,3.07316489]
[1769024356112,0.05735906,3037.0,3034.7,0.00275547]
[1769024356405,0.00394307,3037.1,3035.0,0.16488]
[1769024356611,3.39861297,3037.1,3035.0,0.16488]
[1769024356806,3.39861297,3037.1,3034.7,0.00275547]
[1769024358003,3.39861297,3037.1,3034.7,2.82184537]
[1769024358711,0.00394307,3037.1,3035.3,0.16486]
[1769024358912,0.00394307,3037.1,3035.4,0.16486]
[1769024359107,0.00394307,3037.1,3035.3,2.78923214]
[1769024359299,0.81292433,3037.4,3035.3,2.78923214]
[1769024359504,0.81292433,3037.4,3035.5,2.78528907]
[1769024359808,0.81292433,3037.4,3035.9,0.16483]
[1769024360405,0.81675202,3037.4,3035.9,0.16483]
[1769024360906,0.81675202,3037.4,3036.2,2.78301746]
[1769024361105,3.5593199,3039.2,3036.4,0.1648]
[1769024361307,3.4253199,3039.2,3036.4,0.1648]
[1769024361604,0.05732108,3038.9,3035.7,0.16484]
[1769024361809,0.16466,3039.1,3035.7,2.10026544]
[1769024362012,0.16466,3039.1,3034.7,0.00275547]
[1769024362013,3.3946699,3036.9,3034.7,0.00275547]
[1769024362314,3.39806753,3036.9,3034.7,0.00275547]
[1769024362709,0.00339763,3036.9,3034.7,0.00275547]
[1769024362911,3.3946699,3038.3,3034.8,40.8]
[1769024363112,3.3946699,3038.3,3035.8,0.16483]
[1769024363304,3.3946699,3038.3,3034.8,40.8]
[1769024363504,3.3946699,3038.1,3035.4,0.16486]
[1769024363909,3.3984853,3038.1,3035.4,0.16486]
[1769024364511,3.3946699,3037.3,3034.7,0.00275547]
[1769024364709,3.3946699,3037.3,3034.7,0.16765547]
[1769024365107,3.3946699,3037.3,3034.7,0.00275547]
[1769024365309,3.5594199,3037.3,3034.7,0.00275547]
[1769024366016,3.3946699,3037.3,3034.7,0.00275547]
[1769024367304,3.3946699,3037.3,3035.5,0.16485]
[1769024367814,3.3946699,3037.3,3034.7,0.00275547]
[1769024368206,3.3946699,3037.3,3035.7,0.16484]
[1769024368908,3.3946699,3037.3,3034.8,40.8]
[1769024369813,3.3946699,3037.3,3034.9,3.173]
[1769024370218,3.3946699,3037.3,3035.9,0.16483]
[1769024371114,2.58766788,3042.5,3036.1,2.9838405]
[1769024371418,1.82576869,3039.5,3036.1,2.9838405]
[1769024371615,1.82576869,3039.5,3036.9,0.16477]
[1769024371810,1.82576869,3038.7,3034.8,2.9800251]
[1769024372016,1.82576869,3038.7,3035.9,0.16483]
[1769024372211,1.9943121,3038.7,3035.9,0.16873055]
[1769024372412,1.8296321,3038.7,3035.9,0.00390055]
[1769024372616,0.1647,3038.3,3035.9,0.00390055]
[1769024372818,0.16471,3038.2,3035.9,0.00390055]
[1769024373023,3.3946699,3037.7,3035.9,0.00390055]
[1769024373420,3.3946699,3037.7,3032.8,2.69536458]
[1769024373421,3.3946699,3036.8,3033.3,3.00718555]
[1769024373618,3.3946699,3036.8,3034.1,0.16493]
[1769024373920,3.3946699,3036.8,3033.5,3.00718555]
[1769024374321,3.30086341,3038.7,3035.1,0.16487]
[1769024374322,3.3946699,3037.5,3035.1,0.16487]
[1769024374713,3.3946699,3037.5,3034.3,0.16492]
[1769024375319,3.3946699,3036.7,3033.7,0.16495]
[1769024375527,3.3946699,3036.7,3033.5,0.00380405]
[1769024375824,3.3946699,3036.7,3033.5,40.80380405]
[1769024377215,3.3946699,3036.7,3033.6,2.9489989]
[1769024377421,3.3946699,3036.7,3034.4,0.16491]
[1769024377623,3.3946699,3036.6,3034.4,0.16491]
[1769024378727,3.3946699,3036.6,3034.1,2.9489989]
[1769024379032,3.3946699,3036.6,3034.1,0.16493]
[1769024379335,3.3946699,3036.6,3034.2,0.16492]
[1769024379633,3.3946699,3036.6,3034.3,0.16492]
[1769024380534,3.3946699,3036.6,3034.4,0.16491]
[1769024380739,3.3946699,3036.6,3033.6,3.03232136]
[1769024380931,3.3946699,3036.6,3034.0,3.03232136]
[1769024381234,3.3946699,3036.6,3034.7,0.16489]
[1769024381630,3.3946699,3036.6,3034.3,0.16491]
[1769024381830,3.3946699,3036.6,3034.5,0.16491]
[1769024382341,3.3946699,3036.6,3034.7,0.16489]
[1769024382835,3.3946699,3036.6,3034.8,0.16489]
[1769024383236,3.3946699,3036.6,3034.2,1.08293161]
[1769024383434,3.3946699,3036.6,3035.2,0.16487]
[1769024383632,3.3946699,3036.6,3034.4,1.08293161]
[1769024383835,3.3946699,3036.6,3035.1,0.16487]
[1769024384438,3.3946699,3036.3,3034.6,0.1649]
[1769024384642,3.39791852,3036.3,3034.8,0.16489]
[1769024384944,0.00324862,3036.3,3035.2,0.16487]
[1769024385143,0.00324862,3036.3,3034.5,4.1551067]
[1769024385438,3.3946699,3037.7,3035.8,0.16483]
[1769024385644,3.3946699,3037.7,3036.2,0.16481]
[1769024385844,3.3946699,3037.7,3035.5,1.08293161]
[1769024386040,3.3946699,3037.7,3035.6,1.08293161]
[1769024386239,0.00306617,3037.7,3037.1,0.16476]
[1769024386446,3.63490593,3039.0,3037.1,0.16476]
[1769024386943,3.63490593,3039.0,3036.6,0.16479]
[1769024387140,3.63490593,3038.5,3036.6,0.16479]
[1769024387446,3.63756227,3038.5,3036.6,0.16479]
[1769024387744,3.63756227,3038.5,3035.8,0.16483]
[1769024387936,3.63756227,3038.5,3035.9,0.16483]
[1769024388246,3.63490593,3038.3,3035.9,0.16483]
[1769024388442,3.63490593,3037.4,3035.6,0.00232273]
[1769024389936,3.63490593,3037.4,3033.9,1.08293161]
[1769024390148,3.63490593,3036.8,3034.1,0.16493]
[1769024390343,3.63490593,3036.8,3033.4,0.16496]
[1769024390542,3.63490593,3036.1,3033.5,0.16496]
[1769024390737,3.63490593,3036.1,3033.0,0.16499]
[1769024391048,3.63490593,3035.4,3033.0,0.16781775]
[1769024391347,3.63490593,3035.4,3033.0,0.00282775]
[1769024391947,3.63490593,3034.6,3032.2,0.84428042]
[1769024392446,3.63490593,3034.6,3031.7,0.16506]
[1769024393042,3.63490593,3034.6,3031.7,0.16828082]
[1769024393444,3.92889653,3034.6,3031.7,0.16828082]
[1769024393740,3.63490593,3033.8,3031.7,0.00322082]
[1769024393947,3.63827077,3033.8,3031.7,0.00322082]
[1769024394344,3.63490593,3033.0,3030.1,0.16515]
[1769024394545,3.63490593,3033.0,3030.2,0.16514]
[1769024395048,3.63490593,3033.0,3030.3,0.16513]
[1769024395446,3.63490593,3033.0,3030.3,0.16888203]
[1769024395639,0.00336484,3033.8,3030.3,0.16888203]
[1769024395640,3.63490593,3032.2,3030.3,0.00375203]
[1769024396452,3.63490593,3032.2,3030.3,0.16888203]
[1769024396849,3.63490593,3032.2,3028.5,3.20722695]
[1769024396850,3.63490593,3032.1,3028.5,3.20722695]
[1769024397058,3.63490593,3032.1,3029.4,0.16518]
[1769024397750,3.63490593,3032.1,3029.4,0.16783731]
[1769024398650,3.63490593,3032.1,3029.4,3.23532283]
[1769024398954,3.63490593,3032.7,3029.4,3.23532283]
[1769024399248,3.63490593,3032.7,3030.5,0.16512]
[1769024399642,3.63490593,3032.7,3029.4,3.31058576]
[1769024399846,3.63490593,3032.7,3029.9,0.16515]
[1769024400353,3.63490593,3032.7,3029.4,3.31058576]
[1769024400759,3.63490593,3032.7,3029.9,0.16515]
[1769024400957,3.63490593,3032.7,3029.4,0.00265731]
[1769024401256,3.53844567,3031.2,3029.4,0.00265731]
[1769024401460,3.53844567,3031.2,3026.8,1.62471547]
[1769024401461,3.53844567,3030.4,3027.3,3.44186557]
[1769024402152,3.53844567,3030.4,3027.4,0.16529]
[1769024402353,3.54146067,3030.4,3028.1,0.16525]
[1769024402556,3.54146067,3030.4,3027.4,0.00257026]
[1769024402861,3.54146067,3030.4,3027.4,0.16786026]
[1769024403062,3.53844567,3030.2,3027.4,0.16786026]
[1769024403265,3.53844567,3030.2,3027.4,0.00257026]
[1769024403461,3.53844567,3029.4,3027.4,0.00257026]
[1769024403660,3.53844567,3028.6,3025.8,3.12743876]
[1769024403856,3.53844567,3029.3,3026.4,3.12743876]
[1769024404254,3.53844567,3029.3,3026.9,0.16532]
[1769024404564,3.53844567,3030.1,3028.0,0.16526]
[1769024404758,3.53844567,3030.1,3027.5,3.12743876]
[1769024404963,0.003015,3030.4,3028.3,0.16524]
[1769024405159,3.54146067,3030.4,3028.3,0.16524]
[1769024405965,3.54146067,3030.4,3028.5,0.16523]
[1769024406657,3.54146067,3030.4,3027.7,0.16527]
[1769024407261,3.54146067,3030.4,3028.0,0.16526]
[1769024407657,3.54146067,3030.4,3027.7,3.06271889]
[1769024407861,0.003015,3030.4,3027.9,3.06271889]
[1769024408167,0.003015,3030.4,3028.6,0.16523]
[1769024408666,0.003015,3030.4,3028.0,3.06271889]
[1769024408868,0.003015,3030.4,3028.2,3.06271889]
[1769024409063,0.003015,3030.4,3029.1,0.1652]
[1769024409262,3.53844567,3031.5,3029.2,3.01355819]
[1769024409461,3.53844567,3031.5,3030.0,0.16515]
[1769024410363,3.54162775,3031.5,3029.9,0.16516]
[1769024410563,3.54162775,3031.5,3029.1,3.0173302]
[1769024410756,3.54162775,3031.5,3030.0,0.16515]
[1769024411666,0.00318208,3031.5,3029.2,3.01355819]
[1769024411864,0.00318208,3031.5,3030.3,0.16513]
[1769024412375,3.54162775,3031.5,3030.3,0.16513]
[1769024413870,3.53844567,3032.5,3029.9,2.95618316]
[1769024414072,3.53844567,3032.5,3030.6,0.16512]
[1769024414365,3.53844567,3032.5,3029.2,2.95618316]
[1769024414569,3.53844567,3032.5,3030.8,0.1651]
[1769024414769,3.53844567,3032.5,3029.3,40.8]
[1769024414770,3.5414067,3032.5,3030.0,2.95618316]
[1769024414964,3.5414067,3032.5,3029.3,40.8]
[1769024414965,0.00296103,3032.5,3030.5,2.95618316]
[1769024415165,0.00296103,3032.5,3029.4,1.82576869]
[1769024415166,0.29347001,3033.6,3032.1,0.16504]
[1769024415368,0.29347001,3033.6,3030.7,2.95337857]
[1769024415575,0.29347001,3033.6,3030.1,1.82576869]
[1769024415576,3.53844567,3033.7,3031.7,0.16506]
[1769024416066,3.64117654,3033.6,3031.1,0.16509]
[1769024416268,3.64117654,3033.6,3031.7,0.00238482]
[1769024416470,1.82820975,3033.7,3030.3,40.8]
[1769024416471,3.64117654,3033.3,3030.3,40.8]
[1769024417064,3.64117654,3033.3,3030.7,0.16511]
[1769024417370,3.64117654,3033.3,3031.2,0.16508]
[1769024418164,3.64117654,3033.3,3030.7,0.00364316]
[1769024418865,3.64117654,3032.7,3030.7,0.00364316]
[1769024419376,3.64117654,3033.4,3030.7,0.00364316]
[1769024420276,3.64117654,3033.4,3030.7,2.91725363]
[1769024420673,3.64117654,3033.4,3030.8,2.91361047]
[1769024420866,3.64117654,3033.4,3031.5,0.16507]
[1769024422971,3.64117654,3033.4,3030.7,0.00364316]
[1769024423981,3.64117654,3033.4,3031.2,0.16509]
[1769024424469,0.00244106,3033.7,3030.8,2.93213528]
[1769024424671,3.6436176,3033.7,3031.7,0.16506]
[1769024425671,3.6436176,3033.7,3030.7,0.00364316]
[1769024425672,3.64117654,3033.1,3030.7,0.00364316]
[1769024425872,3.80617654,3032.9,3030.7,0.00364316]
[1769024426074,3.64117654,3032.6,3030.7,0.00364316]
[1769024426282,3.64117654,3031.8,3028.3,4.01908108]
[1769024426483,3.64117654,3031.1,3028.9,0.16521]
[1769024426774,3.64117654,3031.1,3028.2,0.16525]
[1769024427170,3.64463254,3031.1,3028.2,0.00403344]
[1769024427372,3.64463254,3031.1,3028.5,0.16523]
[1769024427570,3.64463254,3031.1,3028.2,0.00403344]
[1769024427774,3.64117654,3030.6,3028.2,0.00403344]
[1769024427974,3.64117654,3029.6,3026.0,0.16537]
[1769024428278,3.80636654,3029.3,3026.0,0.16537]
[1769024428475,3.64117654,3029.1,3025.1,0.16542]
[1769024428675,3.64117654,3028.7,3025.1,0.16542]
[1769024428883,3.64117654,3028.5,3025.3,0.16541]
[1769024429075,3.64117654,3028.5,3025.1,2.88046866]
[1769024429382,3.64117654,3028.5,3026.0,0.16537]
[1769024429584,3.64117654,3028.5,3026.3,0.16535]
[1769024430476,3.64117654,3028.5,3026.6,0.16534]
[1769024431077,0.00264213,3028.7,3025.9,3.95676806]
[1769024431276,3.64381867,3028.7,3026.8,0.16532]
[1769024431679,3.64381867,3028.7,3025.3,2.87383645]
[1769024431985,3.64381867,3028.7,3026.3,0.16535]
[1769024432387,3.64381867,3028.7,3025.3,2.87383645]
[1769024432388,3.64381867,3028.7,3026.4,0.16535]
[1769024433278,3.64381867,3028.7,3025.3,2.87383645]
[1769024433486,3.64381867,3028.7,3025.9,2.87426738]
[1769024433683,3.64381867,3028.7,3026.8,0.16532]
[1769024433887,3.64381867,3028.7,3025.9,2.87426738]
[1769024433888,0.00264213,3028.7,3026.3,2.87426738]
[1769024434089,0.00264213,3028.7,3027.6,0.16528]
[1769024434277,0.28758234,3030.0,3028.5,0.16523]
[1769024434278,3.92875888,3030.0,3028.5,0.16523]
[1769024434478,3.64117654,3030.0,3028.5,0.16523]
[1769024434679,3.64117654,3030.8,3027.6,2.87759315]
[1769024434877,3.64117654,3030.8,3028.5,0.16523]
[1769024435288,3.64435445,3030.8,3028.6,0.16522]
[1769024435488,3.64435445,3030.8,3028.9,0.16521]
[1769024435790,3.64435445,3030.8,3027.7,43.60655773]
[1769024435988,3.64435445,3030.8,3027.9,1.08293161]
[1769024436290,3.64435445,3030.8,3027.7,40.8]
[1769024436585,3.64435445,3030.8,3026.4,5.52028629]
[1769024436586,3.64117654,3028.8,3027.0,0.16532]
[1769024436891,3.64117654,3028.8,3024.5,2.1662873]
[1769024436892,3.64117654,3029.6,3026.9,0.16532]
[1769024437283,3.64117654,3029.3,3026.9,0.16532]
[1769024437484,3.64117654,3029.3,3026.9,0.16897876]
[1769024437992,3.64117654,3029.1,3026.9,0.00365876]
[1769024439283,3.80641654,3028.4,3025.5,0.1654]
[1769024439682,3.80641654,3028.4,3025.6,0.16539]
[1769024439882,3.64117654,3028.2,3024.8,0.16544]
[1769024440184,3.64428584,3028.2,3024.9,0.16543]
[1769024440386,3.64117654,3027.9,3024.9,0.16543]
[1769024440581,3.64117654,3027.9,3024.8,0.00234198]
[1769024441288,3.64117654,3027.9,3025.6,0.16539]
[1769024441488,3.64117654,3027.9,3025.7,0.16538]
[1769024443290,3.64117654,3027.9,3025.0,0.16542]
[1769024443587,3.64117654,3026.9,3024.8,0.00234198]
[1769024443986,3.64117654,3026.9,3024.8,0.16777198]
[1769024444193,3.64117654,3026.9,3025.3,0.16541]
[1769024444581,3.64117654,3026.9,3025.4,0.1654]
[1769024445291,3.64117654,3026.9,3025.7,0.16538]
[1769024445497,3.64117654,3026.9,3024.8,0.00234198]
[1769024445683,3.64255264,3028.1,3024.9,2.88370124]
[1769024445888,3.64255264,3028.1,3026.7,0.16533]
[1769024446194,3.64255264,3028.1,3024.9,2.88370124]
[1769024446388,3.64255264,3028.1,3024.8,0.00234198]
[1769024446690,3.64255264,3028.1,3025.6,0.16539]
[1769024446897,3.64255264,3028.1,3025.7,0.16539]
[1769024447185,3.64255264,3028.1,3024.9,40.8]
[1769024447392,3.64255264,3028.1,3025.0,2.93415578]
[1769024447590,3.64255264,3028.1,3026.1,0.16536]
[1769024448186,3.64255264,3028.1,3024.9,40.8]
[1769024448993,3.64255264,3028.1,3025.1,2.64871246]
[1769024449294,3.64255264,3028.1,3025.3,2.64871246]
[1769024449499,0.0031093,3028.2,3025.9,2.64871246]
[1769024449688,0.0031093,3028.2,3026.9,0.16532]
[1769024449888,0.0031093,3028.2,3027.3,0.1653]
[1769024450084,0.0031093,3028.2,3027.7,0.16528]
[1769024450281,3.64255264,3028.8,3027.7,0.16528]
[1769024450486,3.64255264,3028.8,3027.8,0.16527]
[1769024450690,3.64255264,3029.5,3027.8,0.16527]
[1769024451198,3.64632245,3029.5,3027.8,0.16527]
[1769024451897,3.64632245,3029.5,3027.3,0.0042036]
[1769024452085,3.64632245,3029.5,3028.5,0.16523]
[1769024452485,3.64632245,3029.5,3028.6,0.16523]
[1769024452696,0.00376981,3029.5,3028.6,0.16523]
[1769024453495,3.64632245,3029.5,3027.9,0.16526]
[1769024453801,3.64632245,3029.5,3028.1,0.16525]
[1769024453999,0.00376981,3029.5,3027.5,2.61214]
[1769024454201,3.64255264,3031.5,3029.3,0.16519]
[1769024454500,3.64255264,3031.5,3029.8,0.16516]
[1769024454700,3.64255264,3031.5,3029.9,0.16515]
[1769024455088,3.64564399,3031.5,3029.9,0.00292397]
[1769024455304,3.64564399,3031.5,3030.7,0.16511]
[1769024455602,0.00309135,3031.5,3030.7,0.16511]
[1769024455793,0.00309135,3031.5,3029.9,0.00292397]
[1769024455994,0.00309135,3031.5,3030.0,0.16515]
[1769024456196,3.64564399,3031.5,3029.9,0.00292397]
[1769024456396,0.16495,3033.8,3030.7,0.16511]
[1769024456597,0.16495,3033.8,3029.9,0.00292397]
[1769024456804,0.16495,3033.8,3031.2,0.16509]
[1769024457003,0.28424251,3033.8,3030.2,3.92905837]
[1769024457206,0.1649,3034.7,3030.3,2.83497457]
[1769024457497,0.29165428,3034.7,3030.7,2.83497457]
[1769024457701,0.29165428,3034.7,3031.9,0.16505]
[1769024458297,3.64255264,3034.6,3031.9,0.16505]
[1769024458901,3.80747264,3034.3,3031.0,0.1651]
[1769024459104,3.64255264,3034.3,3031.4,2.90577952]
[1769024459300,0.00285948,3034.7,3033.2,0.16497]
[1769024459502,3.60647989,3034.7,3033.2,0.16909515]
[1769024459704,3.60647989,3034.7,3033.2,0.00412515]
[1769024459905,3.60647989,3034.7,3033.4,0.16497]
[1769024460199,3.60647989,3034.7,3033.2,0.00412515]
[1769024460401,0.00285948,3034.7,3033.2,0.00412515]
[1769024460601,3.60362041,3035.4,3033.2,0.00412515]
[1769024460804,3.60362041,3035.4,3033.9,0.16494]
[1769024461208,3.60362041,3035.4,3033.2,0.00412515]
[1769024461608,3.60750035,3035.4,3033.2,0.00412515]
[1769024462913,3.60362041,3035.0,3032.4,0.16502]
[1769024463409,3.60362041,3034.4,3031.6,0.16506]
[1769024463805,3.60362041,3034.4,3032.3,0.16502]
[1769024464006,3.60362041,3034.4,3032.5,0.16501]
[1769024464200,3.60362041,3034.4,3032.5,0.00314396]
[1769024464402,3.60362041,3035.3,3033.5,0.16496]
[1769024464608,3.60362041,3035.3,3032.6,3.19993321]
[1769024464907,0.00387994,3035.4,3033.2,3.19993321]
[1769024465110,3.60362041,3036.7,3035.0,0.16488]
[1769024465312,3.60362041,3036.7,3034.5,0.16491]
[1769024465904,3.60362041,3036.7,3033.2,3.19993321]
[1769024466108,3.60738965,3036.7,3033.4,3.1910925]
[1769024466407,3.60738965,3036.7,3033.6,3.1910925]
[1769024466604,3.60738965,3036.7,3034.5,0.1649]
[1769024466800,3.60738965,3036.7,3033.6,3.1910925]
[1769024467006,3.60738965,3036.7,3033.8,3.1910925]
[1769024467208,3.60738965,3036.7,3034.6,0.1649]
[1769024468013,3.60362041,3036.1,3033.2,0.00420034]
[1769024468606,3.60362041,3036.1,3034.0,0.16493]
[1769024470010,3.60362041,3036.1,3034.3,0.16492]
[1769024470511,3.60738965,3036.7,3033.8,3.17151511]
[1769024470714,0.00376924,3036.7,3035.7,0.16484]
[1769024471019,3.60738965,3036.7,3033.8,3.17151511]
[1769024471314,3.60738965,3036.7,3034.0,3.23446295]
[1769024471509,3.60738965,3036.7,3034.9,0.16488]
[1769024471708,3.60738965,3036.7,3034.0,3.23446295]
[1769024472010,2.054,3039.1,3034.0,3.23446295]
[1769024472011,3.60362041,3038.1,3034.9,3.23069371]
[1769024472215,3.60362041,3038.1,3036.1,0.16482]
[1769024472908,3.60362041,3038.1,3036.2,0.16481]
[1769024473112,3.60706001,3038.1,3036.2,0.16811472]
[1769024473816,3.60706001,3038.1,3036.2,0.00330472]
[1769024474011,3.60706001,3038.1,3035.1,40.8]
[1769024474012,3.76834041,3037.9,3035.1,40.8]
[1769024474211,3.76834041,3037.9,3035.1,0.16487]
[1769024474411,3.76834041,3037.9,3035.2,0.16487]
[1769024474611,3.76834041,3037.9,3034.6,3.26973479]
[1769024474612,3.60362041,3037.9,3034.6,3.26973479]
[1769024474915,0.0034396,3038.1,3034.6,3.26973479]
[1769024474916,0.0034396,3038.1,3035.6,3.26973479]
[1769024475413,3.60706001,3038.1,3036.4,0.1648]
[1769024475615,3.60706001,3038.1,3034.9,3.26925947]
[1769024476114,3.60706001,3038.1,3035.1,3.26195978]
[1769024476318,3.60706001,3038.1,3036.1,0.16482]
[1769024476518,3.60706001,3038.1,3035.2,3.26195978]
[1769024476721,0.0034396,3038.1,3035.4,3.26195978]
[1769024476922,0.0034396,3038.1,3036.4,0.1648]
[1769024477317,0.0034396,3038.1,3036.6,0.16479]
[1769024477719,0.0034396,3038.1,3036.9,0.16477]
[1769024477914,0.0034396,3038.1,3037.3,0.16475]
[1769024478624,0.0034396,3038.1,3037.5,0.16474]
[1769024480715,0.0034396,3038.1,3036.9,0.00373967]
[1769024480922,3.69714985,3038.1,3036.9,0.00373967]
[1769024481116,3.69714985,3038.1,3035.5,0.16485]
[1769024481117,3.69371025,3037.9,3035.5,0.16485]
[1769024481323,0.0034396,3038.1,3036.7,0.16479]
[1769024481520,0.0034396,3038.1,3035.7,3.29432896]
[1769024481825,0.0034396,3038.1,3037.1,0.16476]
[1769024482024,0.0034396,3038.1,3036.4,0.1648]
[1769024482221,3.69714985,3038.1,3036.4,0.1648]
[1769024482718,3.69714985,3038.1,3035.7,0.16716278]
[1769024482919,3.69371025,3037.6,3035.7,0.00232278]
[1769024484126,3.69371025,3037.2,3034.7,0.16489]
[1769024484321,3.85847025,3037.2,3034.7,0.16489]
[1769024484522,3.85847025,3037.2,3033.3,3.33373225]
[1769024484523,3.69371025,3036.9,3033.3,3.33373225]
[1769024484720,3.69371025,3036.9,3034.5,0.1649]
[1769024485022,3.69371025,3036.9,3032.8,1.0940838]
[1769024485023,3.69371025,3036.9,3033.5,3.3738099]
[1769024485227,3.69371025,3036.9,3034.7,0.16489]
[1769024485826,3.69371025,3036.9,3034.9,0.16489]
[1769024486224,3.69371025,3036.9,3034.1,3.3738099]
[1769024486520,3.69371025,3036.9,3035.5,0.16485]
[1769024486720,3.69371025,3038.0,3035.7,0.16484]
[1769024486918,3.69371025,3038.0,3035.5,0.0042111]
[1769024487620,3.69371025,3038.0,3035.6,0.16484]
[1769024488823,3.69371025,3037.9,3035.5,0.0042111]
[1769024489122,3.85845025,3037.7,3035.5,0.0042111]
[1769024489517,3.69371025,3037.1,3034.5,0.16491]
[1769024489716,1.82464326,3037.2,3033.8,0.16494]
[1769024489717,3.69371025,3036.6,3033.8,0.16494]
[1769024489920,3.69371025,3036.6,3033.2,1.0940838]
[1769024489921,3.69371025,3036.6,3033.3,40.8]
[1769024490126,3.69371025,3036.6,3034.1,0.16493]
[1769024490526,3.69371025,3036.6,3034.1,0.16856126]
[1769024490922,3.69371025,3036.6,3034.3,0.16491]
[1769024491518,3.69371025,3036.4,3034.1,0.00363126]
[1769024491723,3.69371025,3036.1,3034.1,0.00363126]
[1769024492125,3.69371025,3035.7,3032.9,0.16499]
[1769024492320,3.69371025,3035.7,3032.5,3.38200121]
[1769024492631,3.69371025,3035.7,3033.9,0.16494]
[1769024493029,3.69724198,3035.7,3034.0,0.16493]
[1769024493223,0.00353173,3035.7,3034.6,0.1649]
[1769024493427,0.00353173,3035.7,3033.9,0.00326481]
[1769024493932,3.69371025,3037.1,3035.2,0.16487]
[1769024494640,3.69371025,3037.1,3034.5,3.41210253]
[1769024494929,0.00337159,3037.1,3035.0,3.41210253]
[1769024495829,0.00337159,3037.1,3035.9,0.16483]
[1769024496126,0.00337159,3037.1,3035.0,3.41210253]